Workbook

Sheet Loan Calculator
A1: CoMo Zoo Park
A2: New Construction Loan Calculator
A4: Park Zone | B4: Qualifying Loan Amount | C4: Loan Length (months) | D4: Annual Interest Rate | E4: Payment Amount (monthly)
A5: Zone 1 | B5: 387941.7056 | C5: 60 | D5: 0.06 | E5: =PMT(D5/12,C5,B5) -> -7500
A6: Zone 2 | B6: 200000 | C6: 48 | D6: 0.03823148972 | E6: =PMT(D6/12,C6,B6) -> -4500.000511
A7: Zone 3 | B7: 1 | C7: 60 | D7: 0.06 | E7: =PMT(D7/12,C7,B7) -> -0.01933280153
A8: Zone 4 | B8: 1 | C8: 60 | D8: 0.06 | E8: =PMT(D8/12,C8,B8) -> -0.01933280153

Sheet Dolphin Show
A1: CoMo Zoo Park
A2: Dolphin Show Profit Projections
A4: Ticket price Increase: | B4: 0
B6: Winter | C6: Spring | D6: Summer | E6: Fall | F6: Total
A7: Exhibit maintenance | B7: -4000 | C7: -4000 | D7: -5000 | E7: -4000 | F7: =SUM(B7:E7) -> -17000
A8: Food | B8: -1000 | C8: -1000 | D8: -1000 | E8: -1000 | F8: -4000
A9: Marketing | B9: -650 | C9: -1050 | D9: -650 | E9: -1050 | F9: -3400
A10: Staff | B10: -24000 | C10: -32000 | D10: -53000 | E10: -32000 | F10: -141000
A11: Funding sources | B11: 1000 | C11: 1000 | D11: 1000 | E11: 1000 | F11: 4000
A12: Ticket sales | B12: =23000+(23000*$B$4) -> 23000 | C12: =73000+(73000*$B$4) -> 73000 | D12: =126500+(1265000*$B$4) -> 126500 | E12: =66000+(66000*$B$4) -> 66000 | F12: 288500
A13: Profit | B13: =SUM(B7:B12) -> -5650 | C13: =SUM(C7:C12) -> 35950 | D13: =SUM(D7:D12) -> 67850 | E13: =SUM(E7:E12) -> 28950 | F13: =SUM(F7:F12) -> 127100

Sheet Scenario Summary
B2: Scenario Summary
D3: Current Values: | E3: Origianal Project | F3: Increase ticket prices | G3: Current Projections | H3: Reduce marketing funds
E4: Origianl projection with no increase in ticket prices. | F4: Increase dolphin show ticket prices. | G4: Projections based on average costs/profits from previous year. | H4: Reduce monthly marketing budgets.
B5: Changing Cells:
C6: $B$4 | D6: 0.1 | E6: 0 | F6: 0.1 | G6: 0.1 | H6: 0.1
C7: $B$9 | D7: -650 | E7: -650 | F7: -650 | G7: -1650 | H7: -650
C8: $C$9 | D8: -1050 | E8: -1050 | F8: -1050 | G8: -1650 | H8: -1050
C9: $D$9 | D9: -650 | E9: -650 | F9: -650 | G9: -1650 | H9: -650
C10: $E$9 | D10: -1050 | E10: -1050 | F10: -1050 | G10: -1650 | H10: -1050
B11: Result Cells:
C12: $F$13 | D12: 269800 | E12: 127100 | F12: 269800 | G12: 266600 | H12: 269800
B13: Notes: Current Values column represents values of changing cells at
B14: time Scenario Summary Report was created. Changing cells for each
B15: scenario are highlighted in gray.

Sheet Dolphin Show 2
A1: CoMo Zoo Park
A2: Dolphin Show Profit Projections
A4: Ticket price Increase: | B4: 0.1
B6: Winter | C6: Spring | D6: Summer | E6: Fall | F6: Total
A7: Exhibit maintenance | B7: -4000 | C7: -4000 | D7: -5000 | E7: -4000 | F7: =SUM(B7:E7) -> -17000
A8: Food | B8: -1000 | C8: -1000 | D8: -1000 | E8: -1000 | F8: -4000
A9: Marketing | B9: -650 | C9: -1050 | D9: -650 | E9: -1050 | F9: -3400
A10: Staff | B10: -24000 | C10: -32000 | D10: -53000 | E10: -32000 | F10: -141000
A11: Funding sources | B11: 1000 | C11: 1000 | D11: 1000 | E11: 1000 | F11: 4000
A12: Ticket sales | B12: =23000+(23000*$B$4) -> 25300 | C12: =73000+(73000*$B$4) -> 80300 | D12: =126500+(1265000*$B$4) -> 253000 | E12: =66000+(66000*$B$4) -> 72600 | F12: 431200
A13: Profit | B13: =SUM(B7:B12) -> -3350 | C13: =SUM(C7:C12) -> 43250 | D13: =SUM(D7:D12) -> 194350 | E13: =SUM(E7:E12) -> 35550 | F13: =SUM(F7:F12) -> 269800
